bitfinex/quotes_BTCUSD_20240731
["timestamp","ask_amount","ask_price","bid_price","bid_amount"]
[1722454229961,0.0662,65832.0,65831.0,0.77457812]
[1722454230173,0.0662,65832.0,65831.0,0.01505812]
[1722454230374,0.1415,65832.0,65831.0,0.455712]
[1722454230554,0.1415,65832.0,65831.0,0.75952]
[1722454230754,0.1415,65832.0,65831.0,0.47077012]
[1722454231091,0.0753,65832.0,65831.0,0.47077012]
[1722454231566,0.0753,65832.0,65831.0,0.16696212]
[1722454231702,0.0753,65832.0,65831.0,0.47077012]
[1722454232116,0.0753,65832.0,65831.0,0.01505812]
[1722454232117,0.09912636,65832.0,65831.0,0.01505812]
[1722454232319,0.16532636,65832.0,65831.0,0.01505812]
[1722454232733,0.293401,65832.0,65831.0,0.01505812]
[1722454232942,0.293401,65832.0,65806.0,0.45781903]
[1722454232943,0.29105172,65832.0,65817.0,0.01505812]
[1722454233160,0.07476412,65818.0,65817.0,0.01505812]
[1722454233361,0.07476412,65818.0,65812.0,0.000913]
[1722454233362,0.21446412,65818.0,65812.0,0.000913]
[1722454233931,0.1397,65818.0,65812.0,0.000913]
[1722454234852,0.07476412,65817.0,65812.0,0.000913]
[1722454235513,0.759727,65813.0,65812.0,0.000913]
[1722454235722,0.43969672,65813.0,65812.0,0.000913]
[1722454235927,0.74358772,65813.0,65812.0,0.000913]
[1722454236141,1.04747872,65813.0,65812.0,0.000913]
[1722454236350,0.87058639,65813.0,65812.0,0.000913]
[1722454236563,0.89415683,65813.0,65812.0,0.000913]
[1722454236977,0.61521316,65813.0,65794.0,0.15195812]
[1722454237182,0.15335087,65812.0,65796.0,0.151984]
[1722454237384,0.15335087,65812.0,65788.0,0.44858472]
[1722454237385,0.151958,65808.0,65793.0,0.151991]
[1722454237584,0.151959,65807.0,65791.0,0.303992]
[1722454237799,0.151959,65807.0,65792.0,0.151992]
[1722454238022,0.151956,65809.0,65794.0,0.151988]
[1722454238306,0.303914,65808.0,65795.0,0.00101953]
[1722454238529,0.303919,65807.0,65789.0,0.00101953]
[1722454238795,0.303924,65806.0,65789.0,0.1]
[1722454239014,0.07476412,65810.0,65782.0,0.313437]
[1722454239015,0.07476412,65803.0,65782.0,0.313437]
[1722454239242,0.1415,65801.0,65782.0,0.15895672]
[1722454239442,0.1415,65801.0,65783.0,0.304029]
[1722454239679,0.151977,65800.0,65786.0,0.152007]
[1722454239868,0.1452995,65801.0,65787.0,0.152005]
[1722454240168,0.1452995,65801.0,65785.0,0.304019]
[1722454240331,0.1452995,65801.0,65789.0,0.151998]
[1722454240531,0.1452995,65801.0,65790.0,0.151998]
[1722454240732,0.1452995,65801.0,65788.0,0.152001]
[1722454240933,0.1452995,65801.0,65789.0,0.152]
[1722454240934,0.1415,65801.0,65789.0,0.152]
[1722454241150,0.1415,65801.0,65790.0,0.151998]
[1722454241350,0.1415,65801.0,65786.0,0.304015]
[1722454241551,0.1415,65801.0,65789.0,0.151999]
[1722454241874,0.1415,65801.0,65787.0,0.152004]
[1722454242101,0.1415,65801.0,65788.0,0.0014147]
[1722454242308,0.1415,65801.0,65784.0,0.304022]
[1722454242507,0.1415,65801.0,65788.0,0.152002]
[1722454242886,0.1415,65801.0,65782.0,0.15895672]
[1722454242887,0.1415,65801.0,65789.0,0.00110727]
[1722454243066,0.1415,65801.0,65789.0,0.152]
[1722454243267,0.1415,65801.0,65792.0,0.151993]
[1722454243612,0.1415,65801.0,65793.0,0.0015542]
[1722454243831,0.02384087,65799.0,65793.0,0.0015542]
[1722454244020,0.02384087,65799.0,65791.0,0.151995]
[1722454244441,0.02384087,65799.0,65790.0,0.151998]
[1722454244664,0.02384087,65799.0,65783.0,0.14955172]
[1722454244828,0.02384087,65799.0,65792.0,0.151993]
[1722454245036,0.02384087,65799.0,65798.0,0.45594]
[1722454245239,0.02384087,65799.0,65798.0,0.95395172]
[1722454245584,0.0643,65828.0,65798.0,0.95395172]
[1722454245585,0.00379816,65825.0,65809.0,0.151953]
[1722454245717,0.15571716,65825.0,65808.0,0.151956]
[1722454245933,0.15571716,65825.0,65799.0,0.0015542]
[1722454245934,0.00379816,65825.0,65807.0,0.303917]
[1722454246148,0.00379816,65825.0,65799.0,0.0015542]
[1722454246149,0.07476412,65817.0,65800.0,0.14955172]
[1722454246380,0.0643,65823.0,65810.0,0.151951]
[1722454246381,0.0037985,65822.0,65810.0,0.151951]
[1722454246578,0.0037985,65822.0,65808.0,0.303911]
[1722454246579,0.14955172,65821.0,65808.0,0.303911]
[1722454246812,0.14955172,65821.0,65807.0,0.151957]
[1722454246958,0.14955172,65821.0,65808.0,0.151956]
[1722454247159,0.07476412,65817.0,65802.0,0.303941]
[1722454247360,0.07476412,65817.0,65798.0,0.426959]
[1722454247361,0.07476412,65810.0,65799.0,0.303954]
[1722454247561,0.07476412,65810.0,65799.0,0.1]
[1722454247797,0.0653,65809.0,65786.0,0.1]
[1722454247997,0.0653,65809.0,65790.0,0.14955172]
[1722454248198,0.0817,65808.0,65791.0,0.123]
[1722454248397,0.0817,65808.0,65798.0,0.303959]
[1722454248625,0.0817,65808.0,65792.0,0.14955172]
[1722454248960,0.07476412,65803.0,65794.0,0.151988]
[1722454249210,0.07476412,65803.0,65792.0,0.303987]
[1722454249444,0.07476412,65803.0,65796.0,0.151983]
[1722454249638,0.07476412,65803.0,65795.0,0.151986]
[1722454249839,0.07476412,65803.0,65793.0,0.151991]
[1722454250041,0.07476412,65803.0,65775.0,0.304062]
[1722454250042,0.1397,65801.0,65775.0,0.304062]
[1722454250253,0.1397,65801.0,65792.0,0.151992]
[1722454250408,0.1397,65801.0,65783.0,0.14955172]
[1722454250728,0.1397,65801.0,65796.0,0.151984]
[1722454250928,0.1397,65801.0,65795.0,0.151986]
[1722454251194,0.1397,65801.0,65793.0,0.303981]
[1722454251195,0.1397,65801.0,65793.0,0.151989]
[1722454251419,0.1397,65801.0,65788.0,0.304004]
[1722454251420,0.00379946,65800.0,65791.0,0.151995]
[1722454251617,0.00379946,65800.0,65792.0,0.00086955]
[1722454251848,0.00379946,65800.0,65791.0,0.151995]
[1722454251849,0.00379946,65800.0,65779.0,0.304047]
[1722454252054,0.00379946,65800.0,65770.0,0.44949772]
[1722454252055,0.00379946,65800.0,65790.0,0.00083178]
[1722454252189,0.00379946,65800.0,65792.0,0.0015542]
[1722454252391,0.00379946,65800.0,65791.0,0.151995]
[1722454252802,0.00379946,65800.0,65790.0,0.303995]
[1722454253008,0.00379946,65800.0,65793.0,0.151991]
[1722454253205,0.00379946,65800.0,65792.0,0.151993]
[1722454253406,0.00379946,65800.0,65793.0,0.151991]
[1722454253790,0.00379946,65800.0,65792.0,0.151992]
[1722454254040,0.1430155,65801.0,65795.0,0.151985]
[1722454254237,0.1430155,65801.0,65794.0,0.151989]
[1722454254439,0.1430155,65801.0,65791.0,0.151996]
[1722454254725,0.1430155,65801.0,65789.0,0.304001]
[1722454254835,0.02384054,65799.0,65793.0,0.15199]
[1722454255051,0.02384054,65799.0,65790.0,0.151996]
[1722454255282,0.02384054,65799.0,65793.0,0.151991]
[1722454255478,0.02384054,65799.0,65789.0,0.304001]
[1722454255708,0.02384054,65799.0,65782.0,0.167865]
[1722454255962,0.02384054,65799.0,65794.0,0.151987]
[1722454256082,0.02384054,65799.0,65796.0,0.151984]
[1722454256288,0.02384054,65799.0,65794.0,0.151988]
[1722454256513,0.02384054,65799.0,65794.0,0.303978]
[1722454256733,0.02384054,65799.0,65788.0,0.304004]
[1722454256942,0.02384054,65799.0,65798.0,0.45594]
[1722454257155,0.02384054,65799.0,65798.0,1.06386]
[1722454257779,0.02384054,65799.0,65789.0,0.15155172]
[1722454257780,0.07476412,65808.0,65783.0,0.0205]
[1722454258005,0.07476412,65808.0,65773.0,0.01]
[1722454258006,0.07476412,65799.0,65782.0,0.009405]
[1722454258237,0.07476412,65799.0,65782.0,0.15895672]
[1722454258380,0.07476412,65799.0,65794.0,0.151987]
[1722454258870,0.07476412,65799.0,65782.0,0.16807955]
[1722454258871,0.07476412,65799.0,65791.0,0.303989]
[1722454259137,0.07476412,65799.0,65794.0,0.151989]
[1722454259610,0.07476412,65799.0,65792.0,0.151993]
[1722454259823,0.07476412,65799.0,65793.0,0.15199]
[1722454260266,0.15049957,65798.0,65782.0,0.009405]
[1722454260502,0.11845147,65797.0,65782.0,0.009405]
[1722454260745,0.07476412,65792.0,65783.0,0.304028]
[1722454260976,0.0037997,65796.0,65783.0,0.304028]
[1722454260977,0.02384158,65794.0,65783.0,0.304028]
[1722454261208,0.02384158,65794.0,65782.0,0.009405]
[1722454261513,0.70035884,65783.0,65782.0,0.009405]
[1722454261772,0.70035884,65783.0,65771.0,0.0005]
[1722454261773,0.58522,65772.0,65771.0,0.0005]
[1722454261970,0.58522,65772.0,65756.0,0.005323]
[1722454261971,0.37366991,65772.0,65756.0,0.005323]
[1722454262177,0.1248,65759.0,65756.0,0.005323]
[1722454262376,0.12972312,65758.0,65756.0,0.005323]
[1722454262579,0.12972311,65757.0,65756.0,0.005323]
[1722454263353,0.12592094,65757.0,65756.0,0.005323]
[1722454265576,0.14977635,65757.0,65756.0,0.005323]
[1722454265976,0.02385541,65757.0,65756.0,0.005323]
[1722454266189,0.02385541,65757.0,65756.0,0.000323]
[1722454266301,0.13261748,65757.0,65756.0,0.000323]
[1722454266739,0.02385541,65757.0,65756.0,0.000323]
[1722454267982,0.17340713,65757.0,65756.0,0.000323]
[1722454269163,0.02385541,65757.0,65756.0,0.000323]
[1722454269766,0.02385541,65757.0,65756.0,0.456554]
[1722454269894,0.02385541,65757.0,65756.0,0.1524]
[1722454270100,0.1248,65759.0,65756.0,0.000323]
[1722454270301,0.1248,65759.0,65756.0,0.152398]
[1722454270520,0.1248,65759.0,65756.0,0.000323]
[1722454271149,0.07856601,65758.0,65756.0,0.000323]
[1722454271354,0.22811773,65758.0,65756.0,0.000323]
[1722454272734,0.1248,65759.0,65756.0,0.000323]
[1722454273140,0.1248,65759.0,65756.0,0.152398]
[1722454273382,0.1248,65759.0,65756.0,0.000323]
[1722454273383,0.14865583,65759.0,65756.0,0.000323]
[1722454273593,0.07476412,65758.0,65756.0,0.000323]
[1722454274563,0.15790284,65759.0,65756.0,0.000323]
[1722454274990,0.15790284,65759.0,65757.0,0.152073]
[1722454275202,0.15790284,65759.0,65756.0,0.000323]
[1722454275203,0.02385583,65759.0,65758.0,0.45746826]
[1722454275409,0.02385583,65759.0,65758.0,1.21405872]
[1722454275610,0.02385583,65759.0,65758.0,1.49935872]
[1722454275837,0.0608,65777.0,65776.0,0.152031]
[1722454276078,0.075,65778.0,65773.0,0.0015542]
[1722454276198,0.075,65778.0,65777.0,0.152028]
[1722454276646,0.075,65778.0,65777.0,0.456085]
[1722454276863,0.075,65778.0,65777.0,0.152028]
[1722454277413,0.075,65778.0,65777.0,0.456085]
[1722454277728,0.0818,65797.0,65784.0,0.152012]
[1722454277932,0.22674312,65799.0,65785.0,0.0015542]
[1722454277933,0.1432,65786.0,65785.0,0.0015542]
[1722454278156,0.1432,65786.0,65771.0,0.0015542]
[1722454278157,0.29275172,65786.0,65771.0,0.0015542]
[1722454278347,0.07476412,65777.0,65771.0,0.0015542]
[1722454278686,0.07476412,65777.0,65766.0,0.304106]
[1722454278932,0.0038008,65776.0,65765.0,0.0015542]
[1722454279142,0.0038008,65776.0,65764.0,0.0015542]
[1722454279344,0.0038008,65776.0,65768.0,0.304096]
[1722454279514,0.14955172,65775.0,65774.0,0.0015542]
[1722454279751,0.60565072,65775.0,65774.0,0.0015542]
[1722454279922,0.60565072,65775.0,65763.0,0.1536132]
[1722454279923,0.14955172,65775.0,65763.0,0.1536132]
[1722454280128,0.00380139,65774.0,65763.0,0.0015542]
[1722454280343,0.1454,65772.0,65763.0,0.0015542]
[1722454280542,0.00380139,65771.0,65763.0,0.0015542]
[1722454280744,0.00380139,65771.0,65758.0,0.304141]
[1722454280955,0.00380139,65771.0,65760.0,0.152066]
[1722454281161,0.00380139,65771.0,65761.0,0.00104831]
[1722454281531,0.00380139,65771.0,65770.0,0.152045]
[1722454281731,0.1454,65772.0,65766.0,0.304106]
[1722454281953,0.1454,65772.0,65757.0,0.15259255]
[1722454282155,0.1454,65772.0,65766.0,0.152052]
[1722454282357,0.02385019,65771.0,65768.0,0.152049]
[1722454282543,0.02385019,65771.0,65770.0,0.152045]
[1722454282740,0.02385019,65771.0,65769.0,0.00132896]
[1722454282741,0.1454,65772.0,65769.0,0.00132896]
[1722454282944,0.1454,65772.0,65766.0,0.152052]
[1722454283146,0.07476412,65770.0,65762.0,0.152061]
[1722454283341,0.07476412,65770.0,65757.0,0.152074]
[1722454283542,0.1533532,65769.0,65743.0,0.0205]
[1722454283865,0.13138543,65768.0,65754.0,0.304162]
[1722454284023,0.1454,65772.0,65756.0,0.00336431]
[1722454284226,0.29495172,65772.0,65762.0,0.304126]
[1722454284435,0.07476412,65770.0,65756.0,0.000323]
[1722454284658,0.28337547,65769.0,65756.0,0.000323]
[1722454284935,0.13002201,65768.0,65758.0,0.304142]
[1722454285136,0.1454,65772.0,65756.0,0.000323]
[1722454285278,0.1454,65772.0,65768.0,0.304098]
[1722454285479,0.1454,65772.0,65756.0,0.000323]
[1722454285928,0.02385165,65769.0,65765.0,0.152055]
[1722454286169,0.02385165,65769.0,65766.0,0.152053]
[1722454286315,0.1454,65772.0,65766.0,0.304108]
[1722454286519,0.1454,65772.0,65764.0,0.152058]
[1722454286717,0.1454,65772.0,65756.0,0.000323]
[1722454287018,0.1454,65772.0,65765.0,0.152055]
[1722454287259,0.1454,65772.0,65762.0,0.152063]
[1722454287461,0.1454,65772.0,65765.0,0.152055]
[1722454287462,0.16237941,65771.0,65765.0,0.152055]
[1722454287661,0.13917768,65770.0,65763.0,0.456178]
[1722454287861,0.1454,65772.0,65756.0,0.000323]
[1722454287862,0.13917768,65769.0,65756.0,0.000323]
[1722454288065,0.1454,65772.0,65758.0,0.304144]
[1722454288066,0.14920127,65772.0,65758.0,0.304144]
[1722454288220,0.16597244,65771.0,65762.0,0.152062]
[1722454288434,0.16217117,65770.0,65762.0,0.152062]
[1722454288634,0.16217117,65769.0,65762.0,0.152062]
[1722454288837,0.16217117,65768.0,65756.0,0.000323]
[1722454289037,0.24073656,65767.0,65756.0,0.000323]
[1722454289238,0.16217117,65766.0,65756.0,0.000323]
[1722454289547,0.18602419,65765.0,65762.0,0.152061]
[1722454289713,0.04787266,65765.0,65758.0,0.304141]
[1722454289926,0.15335325,65771.0,65759.0,0.152069]
[1722454290173,0.152048,65769.0,65756.0,0.000323]
[1722454290374,0.15335325,65771.0,65756.0,0.000323]
[1722454290375,0.21623951,65768.0,65756.0,0.000323]
[1722454290589,0.13767385,65767.0,65756.0,0.000323]
[1722454290809,0.07856566,65768.0,65756.0,0.000323]
[1722454290810,0.1616833,65766.0,65756.0,0.000323]
[1722454290982,0.1616833,65765.0,65756.0,0.000323]
[1722454291185,0.1616833,65764.0,65759.0,0.152069]
[1722454291390,0.1616833,65763.0,65762.0,0.304127]
[1722454291586,0.1454,65772.0,65762.0,0.304127]
[1722454291587,0.0811,65772.0,65762.0,0.14955172]
[1722454291835,0.0811,65772.0,65765.0,0.30411]
[1722454291836,0.14127335,65771.0,65765.0,0.30411]
[1722454292105,0.0811,65772.0,65759.0,0.14955172]
[1722454292433,0.0811,65772.0,65756.0,0.000323]
[1722454292434,0.16854621,65771.0,65756.0,0.000323]
[1722454292651,0.02384918,65769.0,65756.0,0.14987472]
[1722454292801,0.02384918,65769.0,65768.0,0.152048]
[1722454293173,0.13608577,65769.0,65761.0,0.304129]
[1722454293390,0.0811,65772.0,65770.0,0.152044]
[1722454293593,0.13221401,65771.0,65770.0,0.152044]
[1722454293793,0.13221401,65771.0,65761.0,0.14955172]
[1722454293995,0.15617776,65771.0,65770.0,0.152045]
[1722454294275,0.15617776,65771.0,65767.0,0.304102]
[1722454294276,0.15616647,65771.0,65767.0,0.304102]
[1722454294428,0.02395339,65770.0,65768.0,0.0015542]
[1722454294773,0.0811,65772.0,65768.0,0.0015542]
[1722454294934,0.0811,65772.0,65771.0,0.152042]
[1722454295090,0.0811,65772.0,65753.0,0.313581]
[1722454295091,0.10504906,65772.0,65753.0,0.313581]
[1722454295295,0.0621,65777.0,65775.0,0.152032]
[1722454295499,0.02394957,65776.0,65775.0,0.152032]
[1722454295905,0.02394957,65776.0,65775.0,0.456098]
[1722454296311,0.02394957,65776.0,65771.0,0.304081]
[1722454296516,0.0238475,65776.0,65775.0,0.152033]
[1722454296718,0.04779923,65776.0,65775.0,0.456099]
[1722454297341,0.04779923,65776.0,65775.0,1.21378272]
[1722454297342,0.0238475,65776.0,65775.0,1.21378272]
[1722454297547,0.0238475,65776.0,65775.0,1.54084872]
[1722454297805,0.0787,65796.0,65775.0,0.59711772]
[1722454298036,0.02395609,65795.0,65794.0,0.303979]
[1722454298238,0.07476412,65808.0,65777.0,0.14955172]
[1722454298239,0.0090489,65801.0,65782.0,0.1]
[1722454298464,0.07476412,65808.0,65782.0,0.1]
[1722454298465,0.076,65810.0,65794.0,0.14955172]
[1722454298671,0.02400589,65808.0,65798.0,0.303956]
[1722454298874,0.02400589,65808.0,65794.0,0.14955172]
[1722454298875,0.07476412,65808.0,65794.0,0.14955172]
[1722454299082,0.07476412,65808.0,65795.0,0.151986]
[1722454299083,0.07476412,65801.0,65795.0,0.151986]
[1722454299289,0.15335072,65807.0,65806.0,0.303923]
[1722454299290,0.003799,65807.0,65806.0,0.303923]
[1722454299491,0.003799,65807.0,65800.0,0.2749]
[1722454299492,0.02393264,65807.0,65800.0,0.2749]
[1722454299720,0.0818,65822.0,65809.0,0.303905]
[1722454299918,0.0818,65822.0,65800.0,0.2749]
[1722454299919,0.0818,65822.0,65811.0,0.303896]
[1722454300049,0.0818,65822.0,65813.0,0.151945]
[1722454300451,0.07476412,65819.0,65808.0,0.30391]
[1722454300637,0.07476412,65812.0,65796.0,0.24955172]
[1722454300868,0.07476412,65805.0,65797.0,0.03858227]
[1722454301038,0.07476412,65805.0,65800.0,0.151974]
[1722454301241,0.07476412,65805.0,65788.0,0.009256]
[1722454301242,0.0789,65804.0,65788.0,0.009256]
[1722454301449,0.0789,65804.0,65789.0,0.17255172]
[1722454301645,0.0789,65804.0,65803.0,0.151968]
[1722454301918,0.0789,65804.0,65800.0,0.303948]
[1722454301919,0.1393,65811.0,65810.0,0.151952]
[1722454302129,0.1393,65811.0,65810.0,0.455857]
[1722454302528,0.1393,65811.0,65810.0,0.450857]
[1722454303143,0.1393,65811.0,65800.0,0.14955172]
[1722454303144,0.142,65818.0,65802.0,0.00887039]
[1722454303342,0.142,65818.0,65817.0,0.151936]
[1722454303559,0.142,65818.0,65817.0,0.455808]
[1722454303741,0.142,65818.0,65817.0,0.75968]
[1722454304145,0.142,65818.0,65814.0,0.151942]
[1722454304372,0.0649,65824.0,65815.0,0.15259031]
[1722454304483,0.086527,65825.0,65824.0,0.45576]
[1722454304484,0.009427,65825.0,65824.0,0.45576]
[1722454304712,0.009427,65825.0,65824.0,0.7596]
[1722454304942,0.009427,65825.0,65824.0,0.45576]
[1722454305354,0.009427,65825.0,65824.0,0.15192]
[1722454305560,0.009427,65825.0,65810.0,0.303902]
[1722454305561,0.009427,65825.0,65808.0,0.00909269]
[1722454305773,0.009427,65825.0,65802.0,0.0549]
[1722454305774,0.07476412,65813.0,65809.0,0.303908]
[1722454305992,0.07476412,65813.0,65812.0,0.151947]
[1722454306191,0.07476412,65813.0,65803.0,0.14955172]
[1722454306192,0.0753,65814.0,65813.0,0.455836]
[1722454306483,0.009427,65825.0,65822.0,0.759622]
[1722454306484,0.1374,65823.0,65822.0,0.759622]
[1722454306629,0.009427,65825.0,65824.0,0.45576]
[1722454306839,0.009427,65825.0,65824.0,0.7596]
[1722454307035,0.009427,65825.0,65824.0,0.45576]
[1722454307816,0.009427,65825.0,65824.0,1.06344]
[1722454308020,0.009427,65825.0,65824.0,0.45576]
[1722454308231,0.03325529,65825.0,65824.0,0.45576]
[1722454308581,0.009427,65825.0,65824.0,0.45576]
[1722454308744,0.009427,65825.0,65824.0,0.7596]
[1722454308947,0.009427,65825.0,65824.0,1.06344]
[1722454309782,0.009427,65825.0,65824.0,0.45576]
[1722454310072,0.009427,65825.0,65809.0,0.03610977]
[1722454310406,0.009427,65825.0,65823.0,0.151921]
[1722454310563,0.009427,65825.0,65818.0,0.303863]
[1722454310764,0.009427,65825.0,65823.0,0.151921]
[1722454311001,0.009427,65825.0,65824.0,0.15192]
[1722454311401,0.009427,65825.0,65824.0,0.90915172]
[1722454311647,0.009427,65825.0,65824.0,1.21299172]
[1722454311849,0.03325504,65825.0,65824.0,1.21299172]
[1722454312052,0.009427,65825.0,65824.0,1.23599172]
[1722454312862,0.009427,65825.0,65824.0,1.06344]
[1722454313061,0.009427,65825.0,65824.0,1.23599172]
[1722454313933,0.009427,65825.0,65824.0,0.93215172]
[1722454314135,0.009427,65825.0,65820.0,0.303855]
[1722454314136,0.0665,65824.0,65810.0,0.0214]
[1722454314338,0.0665,65824.0,65823.0,0.151922]
[1722454314539,0.0665,65824.0,65818.0,0.303866]
[1722454314710,0.0665,65824.0,65820.0,0.303855]
[1722454314957,0.0665,65824.0,65809.0,0.00926508]
[1722454314958,0.15856202,65823.0,65809.0,0.00926508]
[1722454315118,0.15856202,65823.0,65799.0,0.1]
[1722454315119,0.30811374,65823.0,65799.0,0.1]
[1722454315323,0.30811374,65823.0,65800.0,3.14955172]
[1722454315324,0.0659,65815.0,65800.0,3.14955172]
[1722454315521,0.06969872,65815.0,65800.0,3.15860901]
[1722454315723,0.06969872,65815.0,65804.0,0.151964]
[1722454316062,0.0829,65814.0,65804.0,0.303932]
[1722454316227,0.00379906,65813.0,65805.0,0.303927]
[1722454316413,0.08669906,65814.0,65804.0,0.30393]
[1722454316635,0.0829,65814.0,65806.0,0.151959]
[1722454316836,0.0829,65814.0,65805.0,0.303926]
[1722454316837,0.07476412,65813.0,65805.0,0.151964]
[1722454317270,0.0866988,65814.0,65800.0,3.0]
[1722454317271,0.0037988,65812.0,65800.0,3.0]
[1722454317469,0.0037988,65812.0,65800.0,3.14955172]
[1722454317672,0.07476412,65811.0,65803.0,0.151966]
[1722454317891,0.00379903,65810.0,65800.0,3.0]
[1722454318303,0.00379903,65810.0,65802.0,0.15197]
[1722454318500,0.00379903,65810.0,65804.0,0.151965]
[1722454318734,0.0829,65814.0,65800.0,3.303951]
[1722454318944,0.0829,65814.0,65803.0,0.00303904]
[1722454319088,0.02383526,65809.0,65808.0,0.455871]
[1722454319261,0.02383526,65809.0,65808.0,0.151957]
[1722454319708,0.0829,65814.0,65808.0,0.151957]
[1722454319855,0.0829,65814.0,65804.0,0.303929]
[1722454320063,0.08669873,65814.0,65803.0,0.303936]
[1722454320265,0.08669873,65814.0,65800.0,3.0]
[1722454320467,0.08669873,65814.0,65802.0,0.15197]
[1722454320666,0.07476412,65813.0,65802.0,0.151969]
[1722454320863,0.00379909,65812.0,65808.0,0.151955]
[1722454321156,0.0829,65814.0,65801.0,0.0030392]
[1722454321364,0.0829,65814.0,65813.0,0.455836]
[1722454322435,0.0829,65814.0,65813.0,0.151945]
[1722454322833,0.303821,65829.0,65802.0,0.17255172]
[1722454322834,0.076,65821.0,65820.0,0.151929]
[1722454323036,0.0612,65822.0,65821.0,0.455781]
[1722454323233,0.076,65827.0,65824.0,0.45576]
[1722454323639,0.076,65827.0,65824.0,0.7596]
[1722454323841,0.0607,65828.0,65824.0,0.7596]
[1722454324046,0.083,65833.0,65824.0,0.7596]
[1722454324047,0.1491,65833.0,65824.0,0.7596]
[1722454324663,0.1491,65833.0,65824.0,1.21299172]
[1722454324874,0.009427,65838.0,65824.0,1.23599172]
[1722454325624,0.009427,65838.0,65824.0,0.93215172]
[1722454325825,0.08798823,65838.0,65824.0,0.94695382]
[1722454326190,0.08798823,65838.0,65824.0,1.21299172]
[1722454326191,0.009427,65838.0,65824.0,1.21299172]
[1722454326782,0.0132244,65838.0,65824.0,0.90915172]
[1722454326989,0.0132244,65838.0,65822.0,0.00911017]
[1722454326990,0.03325511,65825.0,65822.0,0.00911017]
[1722454327195,0.03325511,65825.0,65807.0,0.01]
[1722454327196,0.1413,65824.0,65820.0,0.151928]
[1722454327610,0.1413,65824.0,65817.0,0.151934]
[1722454327819,0.1413,65824.0,65815.0,0.00892333]
[1722454328021,0.07476412,65822.0,65815.0,0.15194]
[1722454328275,0.18503438,65821.0,65808.0,0.303909]
[1722454328509,0.18503438,65821.0,65799.0,0.1]
[1722454328510,0.18503438,65821.0,65791.0,0.03045]
[1722454328511,0.07476412,65815.0,65791.0,0.03045]
[1722454328746,0.16080993,65814.0,65802.0,0.00901858]
[1722454328981,0.00379894,65814.0,65808.0,0.151956]
[1722454329204,0.14795725,65813.0,65812.0,0.151947]
[1722454329450,0.14795725,65813.0,65812.0,0.455842]
[1722454329627,0.14795725,65813.0,65810.0,0.303902]
[1722454329833,0.14795725,65812.0,65805.0,0.303926]
[1722454330317,0.14955172,65818.0,65800.0,3.00893785]
[1722454330319,0.15187907,65811.0,65800.0,3.0]
[1722454330558,0.15187929,65810.0,65803.0,0.303935]
[1722454330793,0.14808013,65809.0,65800.0,3.30395]
[1722454331039,0.15187929,65808.0,65802.0,0.30394]
[1722454331275,0.02383369,65813.0,65800.0,3.0]
[1722454331539,0.1452917,65812.0,65804.0,0.151965]
[1722454331784,0.14149276,65811.0,65805.0,0.151963]
[1722454332022,0.1428,65817.0,65800.0,3.30395]
[1722454332023,0.1428,65817.0,65809.0,0.151954]
[1722454332266,0.16528091,65816.0,65800.0,3.0]
[1722454332530,0.1428,65817.0,65816.0,0.455815]
[1722454332764,0.28863763,65817.0,65812.0,0.303895]
[1722454333011,0.22440014,65816.0,65805.0,0.303928]
[1722454333253,0.22440014,65816.0,65805.0,0.151962]
[1722454333254,0.14583763,65815.0,65805.0,0.151962]
[1722454333508,0.14963655,65814.0,65800.0,3.0]
[1722454333746,0.14583763,65813.0,65809.0,0.151952]
[1722454333960,0.1428,65817.0,65813.0,0.303889]
[1722454334164,0.1428,65817.0,65812.0,0.303895]
[1722454334165,0.14192702,65816.0,65812.0,0.303895]
[1722454334394,0.14192702,65816.0,65801.0,0.14955172]
[1722454334633,0.14192702,65816.0,65815.0,0.455823]
[1722454334878,0.1428,65817.0,65816.0,0.455815]
[1722454335127,0.092627,65825.0,65806.0,0.0015]
[1722454335310,0.07476412,65821.0,65807.0,0.14955172]
[1722454335517,0.14784259,65820.0,65808.0,0.023]
[1722454335753,0.17195924,65819.0,65808.0,0.17255172]
[1722454335970,0.07476412,65821.0,65809.0,0.151954]
[1722454335971,0.17195924,65818.0,65809.0,0.151954]
[1722454336175,0.17195924,65818.0,65800.0,3.0]
[1722454336177,0.0765,65813.0,65800.0,3.0]
[1722454336419,0.14784259,65812.0,65805.0,0.151963]
[1722454336619,0.0765,65813.0,65800.0,3.0]
[1722454336620,0.14784259,65811.0,65810.0,0.151952]
[1722454337054,0.0765,65813.0,65812.0,0.759737]
[1722454337264,0.0657,65817.0,65812.0,0.759737]
[1722454337265,0.0657,65817.0,65816.0,0.151938]
[1722454337474,0.0657,65817.0,65812.0,0.303895]
[1722454337475,0.0819,65821.0,65820.0,0.455788]
[1722454337711,0.22756037,65821.0,65820.0,0.455788]
[1722454337936,0.22756037,65821.0,65818.0,0.303867]
[1722454337937,0.23047867,65821.0,65818.0,0.303867]
[1722454338139,0.23047867,65821.0,65812.0,0.14955172]
[1722454338140,0.14794091,65820.0,65816.0,0.303874]
[1722454338340,0.14794091,65820.0,65812.0,0.14955172]
[1722454338539,0.14794091,65820.0,65819.0,0.151931]
[1722454338781,0.14794091,65820.0,65812.0,0.303895]
[1722454339001,0.02383089,65819.0,65818.0,0.151934]
[1722454339204,0.14773896,65819.0,65817.0,0.303869]
[1722454339377,0.0819,65821.0,65820.0,0.151929]
[1722454339611,0.0819,65821.0,65817.0,0.303869]
[1722454339612,0.22997674,65821.0,65817.0,0.303872]
[1722454339816,0.14807674,65820.0,65819.0,0.151931]
[1722454340053,0.14807674,65820.0,65808.0,0.00894365]
[1722454340289,0.07476412,65819.0,65808.0,0.151956]
[1722454340532,0.07476412,65819.0,65806.0,0.303923]
[1722454340533,0.14807674,65818.0,65806.0,0.303923]
[1722454340763,0.14807674,65817.0,65807.0,0.00303901]
[1722454341000,0.0819,65821.0,65815.0,0.151939]
[1722454341001,0.14807674,65816.0,65815.0,0.151939]
[1722454341235,0.14807674,65816.0,65814.0,0.151942]
[1722454341447,0.02417821,65817.0,65816.0,0.151938]